Cogmind - Beta 13 @@@ ROGUE MODE // 2024.07.08 @ 19:34:41 Player: Gabriel Result: Destroyed by G-47 Trooper with Particle Gun Performance ------------- Evolutions (2) 1000 Regions Visited (5) 1000 Robots Destroyed (22) 110 Value Destroyed (947) 947 Prototype IDs (4) 80 Alien Tech Used (0) 0 Bonus (16) 16 TOTAL SCORE: 3153 Bonus ------- Follower Combat Kills 35 Friendly Fire -19 Cogmind --------- Core Integrity 0/550 Matter 285/300 Energy 21/100 System Corruption 0% Temperature Cool (9) Movement Core (200) Ox3 Location -8/Materials Parts ------- > --- POWER (1) -------- (None) > --- PROPULSION (3) --- (None) > --- UTILITY (3) ------ Structural Scanner > --- WEAPON (4) ------- Pulse Rifle Shock Bomb Launcher > --- INVENTORY (5) ---- Authchip [Armor] Heavy Explosive Trap Heavy Explosive Trap Peak State ------------ > --- POWER ------------ Improved Ion Engine > --- PROPULSION ------- Compact Wheel Improved VTOL Module > --- UTILITY ---------- Small Storage Unit Experimental Sensor Array Signal Interpreter > --- WEAPON ----------- Medium Laser Pulse Rifle Pulse Rifle Mining Laser > --- INVENTORY -------- Ion Engine Hacking Suite Authchip [Armor] Grenade Launcher Grenade Launcher Heavy Explosive Trap Heavy Explosive Trap Heavy Explosive Trap [Rating: 27] Favorites ----------- Power Ion Engine Engine Ion Engine Propulsion Compact Wheel Treads Armored Treads Wheel Compact Wheel Flight Unit Improved VTOL Module Utility Small Storage Unit Device Experimental Sensor Array Storage Small Storage Unit Processor Signal Interpreter Weapon Medium Laser Energy Gun Medium Laser Ballistic Gun Light Assault Rifle Ballistic Cannon Light Cannon Launcher Grenade Launcher Special Weapon Mining Laser Special Melee Weapon Datajack Build | -11 -10 -10 -10 -9 -8 ------- Run | Yrd Mat Min Exi Min Mat Slots Evolved 4 | . . . . . 4 Power . | . . . . . . Propulsion 1 | . . . . . 1 Utility 1 | . . . . . 1 Weapon 2 | . . . . . 2 Parts Attached 36 | 6 7 . . 7 16 Power 5 | 1 . . . 1 3 Engine 5 | 1 . . . 1 3 Core . | . . . . . . Reactor . | . . . . . . Propulsion 6 | 2 . . . 1 3 Treads 1 | . . . . . 1 Leg . | . . . . . . Wheel 4 | 2 . . . 1 1 Hover . | . . . . . . Flight 1 | . . . . . 1 Utility 4 | 1 1 . . . 2 Device 2 | . . . . . 2 Storage 1 | 1 . . . . . Processor 1 | . 1 . . . . Hackware . | . . . . . . Protection . | . . . . . . Artifact . | . . . . . . Weapon 21 | 2 6 . . 5 8 Energy Gun 6 | 1 1 . . 1 3 Energy Cannon . | . . . . . . Ballistic Gun 2 | 1 1 . . . . Ballistic Cannon 1 | . 1 . . . . Launcher 8 | . 1 . . 2 5 Special Weapon 1 | . . . . 1 . Impact Weapon . | . . . . . . Slashing Weapon . | . . . . . . Piercing Weapon . | . . . . . . Special Melee Weapon 3 | . 2 . . 1 . Unidentified Prototypes 2 | . . . . . 2 Parts Lost 15 | . . . . . 15 Power 3 | . . . . . 3 Propulsion 3 | . . . . . 3 Utility 3 | . . . . . 3 Weapon 6 | . . . . . 6 Highest Loss Streak 12 | . . . . . 12 To Critical Strikes . | . . . . . . Average Slot Usage (%) 91 | . 93 100 100 100 72 Engine 12 | . 14 14 14 14 7 Wheel 23 | . 28 28 28 28 11 Device 2 | . . . . . 8 Storage 12 | . 14 14 14 14 7 Processor 11 | . 8 14 14 14 7 Energy Gun 14 | . 7 14 14 13 20 Ballistic Cannon 4 | . 1 14 14 . . Launcher 6 | . 11 . . 11 3 Special Weapon 2 | . . . . 2 6 Special Melee Weapon 1 | . 5 . . . . Naked Turns 8 | . . . . . 8 Heaviest Build 24 | 13 15 15 15 17 24 Greatest Support 32 | 32 32 32 32 32 32 Greatest Overweight (x) 4 | . . . . . 4 Average Overweight (x) . | . . . . . . Largest Inventory Capacity 8 | 8 8 8 8 8 8 Average Capacity 7 | 7 8 8 8 8 7 Most Carried 8 | 2 3 3 3 8 8 Average Carried 4 | . 1 3 3 7 6 Final Capacity 8 | 8 8 8 8 8 5 Final Carried 8 | . 3 3 3 8 3 Class Distribution -------------------- 80% | Mutant 18% | Skirmisher Dominant Class ---------------- Mutant | -10/Materials Mutant | -10/Mines Mutant | -10/Exiles Mutant | -9/Mines Skirmisher | -8/Materials Resources | -11 -10 -10 -10 -9 -8 ----------- Run | Yrd Mat Min Exi Min Mat Matter Collected 777 | 260 4 . . 269 244 Remotely . | . . . . . . Salvage Created 723 | . 63 . . 82 578 Parts 41 | . 9 . . 7 25 Haulers Intercepted . | . . . . . . Recyclers Shooed . | . . . . . . Parts Field Recycled . | . . . . . . Retrieved Matter . | . . . . . . Parts Self-Destructed . | . . . . . . Prevented . | . . . . . . Kills | -11 -10 -10 -10 -9 -8 ------- Run | Yrd Mat Min Exi Min Mat Combat Hostiles Destroyed 17 | . 2 . . 3 12 Guns 7 | . . . . . 7 Cannons 1 | . . . . 1 . AOE 9 | . 2 . . 2 5 Classes Destroyed 7 | . 3 . . 2 2 Builder 2 | . 1 . . . 1 Recycler 1 | . . . . 1 . Mechanic 1 | . . . . . 1 Operator 1 | . 1 . . . . Swarmer 3 | . . . . 3 . Grunt 10 | . 2 . . . 8 Specialist 4 | . . . . . 4 Best Kill Streak 4 | . 2 . . 3 4 Combat Bots Only 3 | . 2 . . 3 3 Max Kills in Single Turn 2 | . 1 . . 2 2 Gunslinging . | . . . . . . Exploded 2 | . 1 . . 2 2 Melee . | . . . . . . Uniques/NPCs Destroyed . | . . . . . . Combat | -11 -10 -10 -10 -9 -8 -------- Run | Yrd Mat Min Exi Min Mat Hostile Shots Fired 71 | . 6 . . 17 48 Missed 20 | . 1 . . 6 13 Damage Taken 1418 | . 71 . . 116 1231 Core 615 | . 20 . . 42 553 Absorbed by Shields . | . . . . . . Regen/Repaired (Parts) 51 | . . . . . 51 Core Remaining (%) 87 | 100 . . . 75 . Volleys Fired 66 | . 19 . . 12 35 Largest 4 | . 2 . . 2 4 Hottest 276 | . 85 . . 150 276 Shots Fired 126 | . 29 . . 19 78 Gun 85 | . 14 . . 9 62 Cannon 4 | . 1 . . 3 . Launcher 30 | . 14 . . 3 13 Special 7 | . . . . 4 3 Kinetic 11 | . 8 . . 3 . Thermal 85 | . 7 . . 13 65 Explosive 26 | . 14 . . 3 9 Electromagnetic 4 | . . . . . 4 Robot Hit Streak 12 | . 3 . . 5 12 Robot Miss Streak 3 | . 2 . . 1 3 Penetration Max . | . . . . . . Secondary Targets 1 | . . . . . 1 Max Gunslinging Chain 1 | . . . . . 1 Shots Hit Robots 73 | . 13 . . 9 51 Core Hits 45 | . 8 . . 6 31 Critical Kills . | . . . . . . Critical Parts Destroyed . | . . . . . . Critical Strikes 2 | . . . . 1 1 Burn 2 | . . . . 1 1 Melee Attacks 9 | . 6 . . 3 . Impact . | . . . . . . Slashing . | . . . . . . Piercing . | . . . . . . Sneak Attacks 4 | . 4 . . . . Combat Hostiles . | . . . . . . Follow-up Attacks . | . . . . . . Damage Inflicted 1766 | . 310 . . 244 1212 Guns 705 | . 23 . . 37 645 Cannons 34 | . 17 . . 17 . Explosions 1003 | . 270 . . 190 543 Melee . | . . . . . . Ramming . | . . . . . . Kinetic 57 | . 40 . . 17 . Thermal 777 | . 71 . . 37 669 Explosive 766 | . 199 . . 190 377 Electromagnetic 166 | . . . . . 166 Impact . | . . . . . . Slashing . | . . . . . . Piercing . | . . . . . . Highest Corruption . | . . . . . . Average Corruption . | . . . . . . Corruption Purged . | . . . . . . Corruption Blocked . | . . . . . . Overload Shots . | . . . . . . Overflow Damage 35 | . . . . . 35 Projectiles . | . . . . . . Explosions 35 | . . . . . 35 Melee . | . . . . . . Knockbacks . | . . . . . . Impact . | . . . . . . Kinetic . | . . . . . . Secondary . | . . . . . . Self-Inflicted Damage 109 | . 16 . . . 93 Shots 5 | . 1 . . . 4 Rammed . | . . . . . . Targets Rammed . | . . . . . . Kicked . | . . . . . . Crushed . | . . . . . . Highest Temperature 377 | . 36 . . 158 377 Average Temperature 121 | . 14 . . 47 168 Received Heat Transfer 183 | . 30 . . 18 135 Effects 7 | . . . . . 7 Shutdowns 1 | . . . . . 1 Energy Bleed 3 | . . . . . 3 Interference 3 | . . . . . 3 Siege Activations . | . . . . . . Robots Corrupted . | . . . . . . Combat Hostiles . | . . . . . . Parts Fried 1 | . . . . . 1 Impact Corruptions . | . . . . . . Robots Melted . | . . . . . . Combat Hostiles . | . . . . . . Parts Melted 2 | . . . . . 2 Heat Transferred 1876 | . 50 . . 185 1641 Parts Sabotaged . | . . . . . . Parts Stolen . | . . . . . . Parts Stripped . | . . . . . . Power Chain Reactions . | . . . . . . Alert | -11 -10 -10 -10 -9 -8 ------- Run | Yrd Mat Min Exi Min Mat Peak Influence 351 | . 269 104 . 136 351 Initial 104 | . . 104 . . 2 Average 125 | . 125 104 . 68 247 Maximum Alert Level 1 | . 1 . . . 1 Low Security (%) 73 | 100 71 100 . 100 28 Level 1 26 | . 28 . . . 71 Level 2 . | . . . . . . Level 3 . | . . . . . . Level 4 . | . . . . . . Level 5 . | . . . . . . High Security . | . . . . . . Max Security . | . . . . . . Squads Dispatched 8 | . 1 . . . 7 Investigation 1 | . . . . . 1 Extermination . | . . . . . . Reinforcement 5 | . 1 . . . 4 Assault 1 | . . . . . 1 Garrison 1 | . . . . . 1 Intercept . | . . . . . . Searches Triggered . | . . . . . . Construction Impeded . | . . . . . . Haulers Reinforced . | . . . . . . Active Scanning Responses . | . . . . . . Cargo Convoy Interrupts . | . . . . . . Stealth | -11 -10 -10 -10 -9 -8 --------- Run | Yrd Mat Min Exi Min Mat Distress Signals . | . . . . . . Communications Jammed . | . . . . . . Distress Signals . | . . . . . . Times Spotted 29 | . 4 . . 5 20 Peak Tracking Total 4 | . 1 . . 3 4 Tactical Retreats 1 | . . . . . 1 Traps | -11 -10 -10 -10 -9 -8 ------- Run | Yrd Mat Min Exi Min Mat Traps Triggered . | . . . . . . Indirectly . | . . . . . . Trap Hack Attempts . | . . . . . . Triggered . | . . . . . . Disarmed . | . . . . . . Reprogrammed 6 | . 6 . . . . Reused 2 | . . . . 1 1 Traps Extracted . | . . . . . . Installed 2 | . . . . 1 1 Triggered 2 | . . . . 1 1 Most Traps Carried 4 | . . . . 4 3 Machines | -11 -10 -10 -10 -9 -8 ---------- Run | Yrd Mat Min Exi Min Mat Machines Disabled 9 | . 6 . . . 3 Max in Single Turn 2 | . 2 . . . 1 Garrison Access 1 | . . . . . 1 Machines Repaired . | . . . . . . Machines Dismantled . | . . . . . . Machines Sabotaged . | . . . . . . Overloaded Fab Kills . | . . . . . . Hacking | -11 -10 -10 -10 -9 -8 --------- Run | Yrd Mat Min Exi Min Mat Machines Accessed 6 | . 3 . 1 . 2 Terminals 3 | . 2 . . . 1 Fabricators . | . . . . . . Repair Stations 1 | . . . . . 1 Recycling Units 1 | . 1 . . . . Scanalyzers . | . . . . . . Garrison Access . | . . . . . . Total Hacks 38 | . 8 . 23 . 7 Successful 31 | . 5 . 23 . 3 Failed 7 | . 3 . . . 4 Catastrophic 1 | . 1 . . . . Database Lockouts . | . . . . . . Manual . | . . . . . . Terminals 10 | . 7 . . . 3 Fabricators . | . . . . . . Repair Stations 4 | . . . . . 4 Recycling Units 1 | . 1 . . . . Scanalyzers . | . . . . . . Garrison Access . | . . . . . . Terminal Hacks 28 | . 4 . 23 . 1 Record 24 | . . . 23 . 1 Prototype ID Bank 1 | . 1 . . . . Locate Traps 1 | . 1 . . . . Reprogram Traps 1 | . 1 . . . . Assault Status 1 | . 1 . . . . Fabricator Hacks . | . . . . . . Repair Station Hacks 2 | . . . . . 2 Scan Component 1 | . . . . . 1 Repair 1 | . . . . . 1 Recycling Unit Hacks 1 | . 1 . . . . Report Inventory 1 | . 1 . . . . Scanalyzer . | . . . . . . Garrison Access Hacks . | . . . . . . Unauthorized Hacks . | . . . . . . Terminals . | . . . . . . Fabricators . | . . . . . . Repair Stations . | . . . . . . Recycling Units . | . . . . . . Scanalyzers . | . . . . . . Garrison Access . | . . . . . . Data Cores Recovered 1 | . 1 . . . . Used 1 | . 1 . . . . Hacking Detections 4 | . 2 . . . 2 Full Trace Events 3 | . 1 . . . 2 Feedback Events . | . . . . . . Feedback Blocked . | . . . . . . Robot Schematics Acquired . | . . . . . . Robots Built . | . . . . . . Authchips . | . . . . . . Time . | . . . . . . Total Robot Build Rating . | . . . . . . Part Schematics Acquired . | . . . . . . Parts Built . | . . . . . . Authchips . | . . . . . . Time . | . . . . . . Total Part Build Rating . | . . . . . . Parts Repaired 1 | . . . . . 1 Time 32 | . . . . . 32 Parts Recycled . | . . . . . . Recycled Matter . | . . . . . . Retrieved Matter . | . . . . . . Retrieved Components . | . . . . . . Parts Scanalyzed . | . . . . . . Part Schematics Acquired . | . . . . . . Parts Damaged . | . . . . . . Bothacking | -11 -10 -10 -10 -9 -8 ------------ Run | Yrd Mat Min Exi Min Mat Used RIF Installer . | . . . . . . Robots Hacked 2 | . 2 . . . . Non-combat 2 | . 2 . . . . Combat . | . . . . . . Robot Hacks Applied 3 | . 3 . . . . parse_system 1 | . 1 . . . . no_distress 2 | . 2 . . . . Relay Couplers Released 1 | . . . . . 1 Machine Destruction 1 | . . . . . 1 Fabnet Peak Effective % . | . . . . . . Robots Rewired . | . . . . . . Allies Hacked . | . . . . . . Hacks Repelled . | . . . . . . Allies | -11 -10 -10 -10 -9 -8 -------- Run | Yrd Mat Min Exi Min Mat Total Allies 1 | . . . . 1 . Largest Group 1 | . . . . 1 1 Highest-Rated Group 31 | . . . . 31 31 Highest-Rated Ally 31 | . . . . 31 31 Total Orders . | . . . . . . Ally Attacks 13 | . . . . . 13 Total Damage 166 | . . . . . 166 Kills 1 | . . . . . 1 Allies Corrupted . | . . . . . . Allies Melted . | . . . . . . Intel | -11 -10 -10 -10 -9 -8 ------- Run | Yrd Mat Min Exi Min Mat Robot Analysis Total . | . . . . . . Derelict Logs Recovered 3 | . . . . 3 . Drone Launches . | . . . . . . Drone Recoveries . | . . . . . . Exploration | -11 -10 -10 -10 -9 -8 ------------- Run | Yrd Mat Min Exi Min Mat Turns Passed 2609 | 263 382 91 556 709 608 Spaces Moved 1952 | 75 300 75 557 632 313 Core 28 | 15 . . . . 13 Treads . | . . . . . . Legs . | . . . . . . Wheels 1924 | 60 300 75 557 632 300 Hover . | . . . . . . Flight . | . . . . . . Fastest Speed 50 | 50 100 100 100 100 50 Average Speed 99 | 90 100 100 100 100 101 Slowest Speed 250 | 100 100 100 100 100 250 Overloaded Moves . | . . . . . . Propulsion Burnouts . | . . . . . . Robots Hopped . | . . . . . . Cave-ins Triggered . | . . . . . . Exploration Rate (%) 44 | 6 38 21 80 99 20 Regions Visited 5 Branch Regions 3 Pre-discovered Areas 3 | . . 1 1 1 . Known Exits Taken 4 | . 1 1 1 1 . Unknown Exits Taken 1 | 1 . . . . . Scrap Searched 4 | . . . . 4 . Spaces Dug 23 | . 20 . . 3 . Terrain Destroyed 176 | . 104 . . 32 40 Melee . | . . . . . . Projectile 5 | . . . . 4 1 AOE 171 | . 104 . . 28 39 Terrain Rammed . | . . . . . . Walls Destroyed . | . . . . . . Machines Disabled . | . . . . . . Actions | -11 -10 -10 -10 -9 -8 --------- Run | Yrd Mat Min Exi Min Mat Total 2474 | 270 348 91 556 679 530 Wait 376 | 184 13 17 . 8 154 Move 1947 | 74 299 74 556 631 313 Hop . | . . . . . . Pick Up 28 | 6 4 . . 10 8 Fast Attach 3 | . . . . . 3 Attach 18 | 6 1 . . . 11 Detach . | . . . . . . Swap 15 | . 6 . . 7 2 Drop 8 | . . . . 5 3 Fire 66 | . 19 . . 12 35 Melee 9 | . 6 . . 3 . Ram . | . . . . . . Kick . | . . . . . . Crush . | . . . . . . Escape Stasis . | . . . . . . Rewire 2 | . . . . 2 . Trap 2 | . . . . 1 1 Miscellaneous . | . . . . . . Route ------- -11/Scrapyard -10/Materials (discovered 2 exits: [*Mat] / *Min) -10/Mines -10/Exiles (discovered 2 exits: *Min x2) -9/Mines (discovered 2 exits: *Mat x2) -8/Materials (discovered 1 exit: *Sto) History --------- Turn | Location | Event 3 | -11/Scrapyard | Discovered new exit (range 16) 264 | -11/Scrapyard | Entered Materials 312 | -10/Materials | Build established: Mutant 434 | -10/Materials | Discovered new exit (range 15) 599 | -10/Materials | Discovered new exit (range 6) 644 | -10/Materials | Identified exit to Mines 646 | -10/Materials | Entered Mines 652 | -10/Mines | Learned location of Storage (-8) 675 | -10/Mines | Met a Derelict bent on vengeance 733 | -10/Mines | Deemed a non-threat by the Exiles lab entrance 733 | -10/Mines | Discovered new exit (range 5) 736 | -10/Mines | Identified exit to Exiles 737 | -10/Mines | Entered Exiles 767 | -10/Exiles | Met 8R-AWN 796 | -10/Exiles | Discovered new exit (range 14) 835 | -10/Exiles | Met EX-HEX 936 | -10/Exiles | Met EX-DEC 998 | -10/Exiles | Learned location of Zion (-7) 1043 | -10/Exiles | Discovered new exit (range 14) 1111 | -10/Exiles | Visited The Gauntlet 1292 | -10/Exiles | Identified exit to Mines 1293 | -10/Exiles | Entered Mines 1344 | -9/Mines | Found a hidden stash of uninstalled traps 1370 | -9/Mines | Discovered new exit (range 8) 1390 | -9/Mines | Identified exit to Materials 1441 | -9/Mines | YI-UF0 nonchalantly dropped a Grenade Launcher on the ground 1634 | -9/Mines | Found a damaged Exp. Sensor Array with a note attached 1637 | -9/Mines | Found Prototype Device 1670 | -9/Mines | Discovered exit to Materials (range 12) 1845 | -9/Mines | Received a Mining Laser from a helpful Derelict 2002 | -9/Mines | Entered Materials 2002 | -8/Materials | Accompanied by 1 ally 2002 | -8/Materials | Evolved 4 slots: Propulsion x1, Utility x1, Weapon x2 2003 | -8/Materials | Identified exit to Storage 2004 | -8/Materials | Identified Exp. Sensor Array 2053 | -8/Materials | Garrison activated, responded to threat 2198 | -8/Materials | Repaired Imp. Ion Engine 2314 | -8/Materials | Build established: Skirmisher 2504 | -8/Materials | Core integrity fell below 50% 2528 | -8/Materials | Core integrity fell below 20% 2553 | -8/Materials | Lost 12 parts (2p1n3u6w) 2610 | -8/Materials | Destroyed by G-47 Trooper with Particle Gun Last Messages --------------- Acquired 10 matter. U-05 Engineer lays Concrete. Acquired Wheel. U-05 Engineer builds a Wall. Acquired Structural Scanner. Acquired Lgt. Ion Engine. U-05 Engineer lays Concrete. The unstable cave ceiling collapses. Acquired Shock Bomb Launcher. Electrolysis Chamber disabled. Imp. Heat Sink fried. G-47 Trooper destroyed. Lgt. Ion Engine destroyed. Acquired 68 matter. Acquired Pulse Rifle. Acquired 17 matter. Door malfunctions. G-47 Trooper destroyed. Door malfunctions. Wheel destroyed. Map ----- +----------------------------------------------------+ | ?????????????????????????????????????????????? ? | | ?????????????????????????????????????????????? = ? | | ????????????????????????? ???????????????????? ? | | ????????????????????????? ??????????????????? | | ????????????????????????? ???????????????????##/## | | ????????????????????????? ???????????????????## ## | | ????????????????????????? ???????????????????## ## | | ????????????????????????? ???????????????????## # | | ???????????????????????## ##????????########### # | | ???????????????????????## ##????????########### # | | ???????????????????????## ##????????## ### #% | | ???????????????????????## ##????????## """ ### # | | ???????????????????????## ##????????## %""" ### #% | | ???????????????????????## #########?## "" ### ## | | ???????????????????????##u#########?## = | | ???????????????????????## # #####= #%= | | ???????????????????????## # ########+### | | ???????????????????????## # / ! | | ???????????????????????## + ######## ###### | | ???????????????????????## # ## ##=####### | | ???????????????????????## # % ## # ######## | | ???????????????????????## ##/##/### # # !# | | ???????????????????????## g [!### # # """ # | | ???????????????????????## ### # # "R" # | | ???????????????????????## #####+### # " " # | | ???????????????????????##@ !%!#== # | | ???????????????????????## ![+%% # | | ???????????????????????## ##+######## | | ???????????????????????## # #??? | | ???????????????????????## # #??? | | ???????????????????????## # "" #??? | | ???????????????????????## # """ #??? | | ???????????????????????## + """ #??? | | ???????????????????????## # #??? | | ???????????????????????##+##+########t#########??? | | ???????????????????????## ##### #???? | | ???????????????????????????????????# #???? | | ???????????????????????????????????# #???? | | ???????????????????????????????????# """"" #???? | | ???????????????????????????????????# """"" #??## | | ???????????????????????????????????# """"" #??# | | ???????????????????????????????????# #??# | | ???????????????????????????????????# #?## | | ???????????????????????????????????#####+#####?# | | ?????????????????????????????????????# ##### | | ?????????????????????????????????????# #% | | ?????????????????????????????????????# / | | ?????????????????????????????????????# ==# | | ?????????????????????????????????????# #### # | | ?????????????????????????????????????## #### [ # | +----------------------------------------------------+ Best States ------------- Heat Dissipation 31 Energy Generation 12 Energy Capacity 265 Matter Stores 300 Matter Capacity 300 Sight Range 16 Robot Scan Range 20 Terrain Scan Density 10 Evasion (%) 50 Authchip Count 1 Item Schematics ----------------- None Robot Schematics ------------------ None Fabricated ------------ Nothing Alien Tech Used ----------------- None Achievements -------------- Dynamic Key Librarian Tourist Challenges ------------ None Game ------ Seed EfficiencyBackupFrame Manual? 0 Play Time 00:37:55 Cumulative 3.2 hours Start 2024.07.08 @ 18:52:05 End 2024.07.08 @ 19:34:41 Sessions 1 Manual Loads 0 Difficulty Rogue Special Mode None Game No. 5 Rogue 5 Adventurer 0 Explorer 0 Win Type - Total 0 Types 0/0/0/0/0/0/0/0/0 Lore% 6 Gallery% 6 Achievement% 6 Wizard Run 0 Options --------- Layout 1 ASCII 0 Keyboard 0 Movement Mouse Keybinds 0 Fullscreen 1 Font 24/Terminus Map View 50x35 Zoom Use 0% Tactical HUD 0 Map Filters NONE Filters NONE Steam 1 RUN: c9f8b444-b85c-4d4e-8a29-0d0b0bb77b0a